Cogmind - Beta 17.1 @@@ ROGUE MODE // 2026.09.13 @ 17:49:42 Player: Kite Result: Self-destructed Performance ------------- Evolutions (1) 500 Regions Visited (3) 600 Robots Destroyed (15) 75 Value Destroyed (359) 359 Prototype IDs (0) 0 Alien Tech Used (0) 0 Bonus (0) 0 TOTAL SCORE: 1534 Bonus ------- None Cogmind --------- Core Integrity 400/400 Matter 290/300 Energy 250/250 System Corruption 0% Temperature Cool (0) Movement Treading (160) Location -9/Materials Parts ------- > --- POWER (1) -------- Ion Engine > --- PROPULSION (3) --- Light Treads Light Treads > --- UTILITY (2) ------ Heat Sink Large Storage Unit > --- WEAPON (3) ------- EM Pulse Gun Small Laser Small Laser > --- INVENTORY (15) --- Light Ion Engine Light Ion Engine Light Ion Engine Light Treads Light Treads Aluminum Leg Aluminum Leg Large Matter Pod (150) Medium Armor Plating Grenade Launcher Datajack Mace Mace Mace Mace Peak State ------------ > --- POWER ------------ Ion Engine > --- PROPULSION ------- Light Treads Light Treads > --- UTILITY ---------- Heat Sink Large Storage Unit > --- WEAPON ----------- EM Pulse Gun Small Laser Small Laser > --- INVENTORY -------- Light Ion Engine Light Ion Engine Light Ion Engine Light Treads Light Treads Aluminum Leg Aluminum Leg Large Matter Pod Medium Armor Plating Grenade Launcher Datajack Mace Mace Mace Mace [Rating: 10] Favorites ----------- Power Ion Engine Engine Ion Engine Propulsion Light Treads Treads Light Treads Utility Heat Sink Device Heat Sink Storage Large Storage Unit Weapon Small Laser Energy Gun Small Laser Build | -11 -10 -10 -9 ------- Run | Yrd Mat Min Mat Slots Evolved 2 | . . . 2 Power . | . . . . Propulsion 1 | . . . 1 Utility . | . . . . Weapon 1 | . . . 1 Parts Attached 13 | 6 4 2 1 Power 2 | 1 1 . . Engine 2 | 1 1 . . Core . | . . . . Reactor . | . . . . Propulsion 2 | 2 . . . Treads 2 | 2 . . . Leg . | . . . . Wheel . | . . . . Hover . | . . . . Flight . | . . . . Utility 4 | 1 2 1 . Device 2 | . 1 1 . Storage 2 | 1 1 . . Processor . | . . . . Hackware . | . . . . Protection . | . . . . Artifact . | . . . . Weapon 5 | 2 1 1 1 Energy Gun 5 | 2 1 1 1 Energy Cannon . | . . . . Ballistic Gun . | . . . . Ballistic Cannon . | . . . . Launcher . | . . . . Special Weapon . | . . . . Impact Weapon . | . . . . Slashing Weapon . | . . . . Piercing Weapon . | . . . . Special Melee Weapon . | . . . . Unidentified Prototypes . | . . . . Parts Lost 1 | . 1 . . Power 1 | . 1 . . Propulsion . | . . . . Utility . | . . . . Weapon . | . . . . Highest Loss Streak 1 | . 1 . . To Critical Strikes . | . . . . Average Backups 11 | 1 9 15 14 Power 2 | . 2 3 3 Propulsion 3 | . 2 4 4 Utility . | . . 1 1 Weapon 4 | . 3 6 5 Tool/Special . | . . . . Unused Backups 15 | . . . 15 Power 3 | . . . 3 Propulsion 4 | . . . 4 Utility 2 | . . . 2 Weapon 5 | . . . 5 Tool/Special 1 | . . . 1 Average Slot Usage (%) 97 | . 97 100 88 Engine 13 | . 13 14 11 Treads 27 | . 28 28 22 Device 12 | . 11 14 11 Storage 13 | . 14 14 11 Energy Gun 28 | . 28 28 33 Peak Build Rating 10 | 6 8 8 10 Average Rating 7 | 4 7 8 9 On Entrance 5 | . 6 8 8 Avg Prop Armor Cover (%) . | . . . . Naked Turns . | . . . . Heaviest Build 30 | 10 28 28 30 Greatest Support 40 | 40 40 40 40 Greatest Overweight (x) . | . . . . Average Overweight (x) . | . . . . Largest Inventory Capacity 15 | 8 15 15 15 Average Capacity 13 | 7 13 15 15 Most Carried 15 | 4 15 15 15 Average Carried 11 | 1 9 15 14 Final Capacity 15 | 8 15 15 15 Final Carried 15 | 4 15 15 15 Class Distribution -------------------- 89% | Mutant 6% | Scavenger-Mutant 4% | Scavenger-Gunner Dominant Class ---------------- Mutant | -10/Materials Mutant | -10/Mines Scavenger-Gunner | -9/Materials Resources | -11 -10 -10 -9 ----------- Run | Yrd Mat Min Mat Matter Collected 485 | 134 320 31 . Remotely . | . . . . Salvage Created 555 | . 529 26 . Parts 30 | . 27 3 . Haulers Intercepted 2 | . 2 . . Recyclers Shooed 3 | . 3 . . Parts Field Recycled . | . . . . Retrieved Matter . | . . . . Parts Self-Destructed . | . . . . Prevented . | . . . . Parts Restored . | . . . . Kills | -11 -10 -10 -9 ------- Run | Yrd Mat Min Mat Combat Hostiles Destroyed 12 | . 11 1 . Guns 12 | . 11 1 . Classes Destroyed 4 | . 4 . . Hauler 2 | . 2 . . Recycler 1 | . 1 . . Swarmer 3 | . 3 . . Grunt 9 | . 8 1 . Best Kill Streak 3 | . 3 1 . Combat Bots Only 3 | . 3 1 . Max Kills in Single Turn 1 | . 1 1 . Gunslinging . | . . . . Exploded . | . . . . Melee . | . . . . Uniques/NPCs Destroyed . | . . . . Combat | -11 -10 -10 -9 -------- Run | Yrd Mat Min Mat Hostile Shots Fired 63 | . 56 6 1 Missed 20 | . 18 2 . Hits 43 | . 38 4 1 Projectile 43 | . 38 4 1 Critical Strikes 1 | . 1 . . Damage Taken 482 | . 425 45 12 Core 119 | . 96 23 . Absorbed by Shields . | . . . . Core Remaining (%) 76 | 100 . 52 . Volleys Fired 64 | . 60 4 . Largest 2 | . 2 2 . Hottest 80 | . 80 80 . Shots Fired 129 | . 121 8 . Gun 129 | . 121 8 . Cannon . | . . . . Launcher . | . . . . Special . | . . . . Kinetic . | . . . . Thermal 129 | . 121 8 . Explosive . | . . . . Electromagnetic . | . . . . Robot Hit Streak 6 | . 6 5 . Robot Miss Streak 3 | . 3 2 . Penetration Max . | . . . . Secondary Targets 1 | . 1 . . Max Gunslinging Chain 1 | . 1 . . Shots Hit Robots 79 | . 73 6 . Core Hits 32 | . 30 2 . Critical Kills . | . . . . Critical Parts Destroyed . | . . . . Critical Strikes . | . . . . Melee Attacks . | . . . . Impact . | . . . . Slashing . | . . . . Piercing . | . . . . Sneak Attacks . | . . . . Combat Hostiles . | . . . . Follow-up Attacks . | . . . . Damage Inflicted 892 | . 824 68 . Guns 892 | . 824 68 . Cannons . | . . . . Explosions . | . . . . Melee . | . . . . Ramming . | . . . . Kinetic . | . . . . Thermal 892 | . 824 68 . Explosive . | . . . . Electromagnetic . | . . . . Impact . | . . . . Slashing . | . . . . Piercing . | . . . . Highest Corruption 2 | . 2 2 . Average Corruption 2 | . 2 2 . Corruption Purged . | . . . . Corruption Blocked . | . . . . Effects 12 | . 6 6 . Message Errors 3 | . 1 2 . Matter Fused 3 | . 1 2 . Heat Flow Errors 1 | . . 1 . Energy Discharges 1 | . . 1 . Data Loss (minor) 2 | . 2 . . Data Loss (major) 1 | . 1 . . Misfires 1 | . 1 . . Overload Shots . | . . . . Overflow Damage . | . . . . Projectiles . | . . . . Explosions . | . . . . Melee . | . . . . Knockbacks . | . . . . Impact . | . . . . Kinetic . | . . . . Secondary . | . . . . Self-Inflicted Damage . | . . . . Shots . | . . . . Rammed . | . . . . Targets Rammed . | . . . . Kicked . | . . . . Crushed . | . . . . Highest Temperature 190 | . 190 190 . Average Temperature 69 | . 69 72 . Received Heat Transfer 231 | . 201 24 6 Siege Activations . | . . . . Martial Activations . | . . . . Shielding Activations . | . . . . Robots Disrupted . | . . . . Combat Hostiles . | . . . . Robots Corrupted . | . . . . Combat Hostiles . | . . . . Parts Fried . | . . . . Impact Corruptions . | . . . . Robots Melted . | . . . . Combat Hostiles . | . . . . Parts Melted 3 | . 2 1 . Heat Transferred 2025 | . 1875 150 . Parts Sabotaged . | . . . . Parts Stolen . | . . . . Parts Stripped . | . . . . Power Chain Reactions . | . . . . Alert | -11 -10 -10 -9 ------- Run | Yrd Mat Min Mat Maximum Alert Level . | . . . . Low Security (%) 100 | 100 100 100 100 Level 1 . | . . . . Level 2 . | . . . . Level 3 . | . . . . Level 4 . | . . . . Level 5 . | . . . . High Security . | . . . . Max Security . | . . . . Peak Influence 112 | . 112 30 7 Initial 30 | . . 30 . Average 24 | . 46 2 . Influence Increases 416 | . 389 20 7 Destroy 0b10 Robot/C 240 | . 220 20 . Destroy 0b10 Robot/NC 15 | . 15 . . Destroy Leader 44 | . 44 . . Successful Hack 12 | . 5 . 7 Select Force Hacks 60 | . 60 . . Lose Combat Pursuer 45 | . 45 . . Influence Decreases 416 | . 312 97 7 Entered New Map 47 | . . 47 . Time Decay 359 | . 302 50 7 Lost Part 10 | . 10 . . Squads Dispatched 2 | . 2 . . Investigation 2 | . 2 . . Extermination . | . . . . Reinforcement . | . . . . Assault . | . . . . Garrison . | . . . . Intercept . | . . . . Searches Triggered . | . . . . Construction Impeded . | . . . . Haulers Reinforced . | . . . . Active Scanning Responses . | . . . . Cargo Convoy Interrupts . | . . . . Stealth | -11 -10 -10 -9 --------- Run | Yrd Mat Min Mat Distress Signals 6 | . 2 4 . Communications Jammed . | . . . . Distress Signals . | . . . . Times Spotted 23 | . 21 1 1 Peak Tracking Total 4 | . 4 . 1 Tactical Retreats 2 | . 2 . . Traps | -11 -10 -10 -9 ------- Run | Yrd Mat Min Mat Traps Triggered 1 | . 1 . . Indirectly . | . . . . Trap Hack Attempts . | . . . . Triggered . | . . . . Disarmed . | . . . . Reprogrammed . | . . . . Reused . | . . . . Traps Extracted . | . . . . Installed . | . . . . Triggered . | . . . . Machines | -11 -10 -10 -9 ---------- Run | Yrd Mat Min Mat Machines Disabled . | . . . . Max in Single Turn . | . . . . Machines Repaired . | . . . . Machines Dismantled . | . . . . Machines Sabotaged . | . . . . Overloaded Fab Kills . | . . . . Hacking | -11 -10 -10 -9 --------- Run | Yrd Mat Min Mat Machines Accessed 4 | . 3 . 1 Terminals 2 | . 1 . 1 Fabricators . | . . . . Repair Stations . | . . . . Recycling Units 2 | . 2 . . Scanalyzers . | . . . . Garrison Access . | . . . . Total Hacks 10 | . 7 . 3 Successful 5 | . 4 . 1 Failed 5 | . 3 . 2 Catastrophic 3 | . 2 . 1 Database Lockouts . | . . . . Manual 10 | . 7 . 3 Terminals 8 | . 5 . 3 Fabricators . | . . . . Repair Stations . | . . . . Recycling Units 2 | . 2 . . Scanalyzers . | . . . . Garrison Access . | . . . . Terminal Hacks 2 | . 1 . 1 Part Schematic 2 | . 1 . 1 Fabricator Hacks . | . . . . Repair Station Hacks . | . . . . Recycling Unit Hacks . | . . . . Scanalyzer . | . . . . Garrison Access Hacks . | . . . . Unauthorized Hacks 3 | . 3 . . Terminals 1 | . 1 . . Botnet 1 | . 1 . . Fabricators . | . . . . Repair Stations . | . . . . Recycling Units 2 | . 2 . . Tunnel 2 | . 2 . . Scanalyzers . | . . . . Garrison Access . | . . . . Data Cores Recovered . | . . . . Used . | . . . . Hacking Detections 2 | . 1 . 1 Full Trace Events 1 | . 1 . . Feedback Events . | . . . . Feedback Blocked . | . . . . Robot Schematics Acquired . | . . . . Robots Built . | . . . . Authchips . | . . . . Time . | . . . . Total Robot Build Rating . | . . . . Part Schematics Acquired 2 | . 1 . 1 Parts Built . | . . . . Authchips . | . . . . Time . | . . . . Total Part Build Rating . | . . . . Part Studies Acquired . | . . . . Parts Repaired . | . . . . Time . | . . . . Parts Recycled . | . . . . Recycled Matter . | . . . . Retrieved Matter . | . . . . Retrieved Components . | . . . . Parts Scanalyzed . | . . . . Part Schematics Acquired . | . . . . Parts Damaged . | . . . . Bothacking | -11 -10 -10 -9 ------------ Run | Yrd Mat Min Mat Used RIF Installer . | . . . . Robots Hacked . | . . . . Non-combat . | . . . . Combat . | . . . . Robot Hacks Applied . | . . . . Relay Couplers Released . | . . . . Fabnet Peak Effective % . | . . . . Robots Rewired . | . . . . Allies Hacked . | . . . . Hacks Repelled . | . . . . Allies | -11 -10 -10 -9 -------- Run | Yrd Mat Min Mat Total Allies . | . . . . Largest Group . | . . . . Highest-Rated Group . | . . . . Highest-Rated Ally . | . . . . Total Orders . | . . . . Ally Attacks . | . . . . Total Damage . | . . . . Kills . | . . . . Allies Corrupted . | . . . . Allies Melted . | . . . . Intel | -11 -10 -10 -9 ------- Run | Yrd Mat Min Mat Active Infowar (turns) . | . . . . Robot Analysis Total . | . . . . Derelict Logs Recovered 1 | . . 1 . Drone Launches . | . . . . Drone Recoveries . | . . . . Exploration | -11 -10 -10 -9 ------------- Run | Yrd Mat Min Mat Turns Passed 1492 | 72 770 580 70 Spaces Moved 561 | 41 317 161 42 Core 5 | 5 . . . Treads 556 | 36 317 161 42 Legs . | . . . . Wheels . | . . . . Hover . | . . . . Flight . | . . . . Fastest Speed 50 | 50 160 160 160 Average Speed 159 | 146 160 160 160 Slowest Speed 160 | 160 160 160 160 Overloaded Moves . | . . . . Propulsion Burnouts . | . . . . Robots Hopped . | . . . . Potential Cave-ins . | . . . . Cave-ins Triggered . | . . . . Exploration Rate (%) 22 | 4 53 24 7 Regions Visited 3 Branch Regions 1 Pre-discovered Areas 2 | . 2 . . Known Exits Taken . | . . . . Unknown Exits Taken 3 | 1 1 1 . Scrap Searched . | . . . . Spaces Dug . | . . . . Terrain Destroyed . | . . . . Melee . | . . . . Projectile . | . . . . AOE . | . . . . Terrain Rammed . | . . . . Walls Destroyed . | . . . . Machines Disabled . | . . . . Actions | -11 -10 -10 -9 --------- Run | Yrd Mat Min Mat Total 1030 | 50 459 477 44 Wait 375 | . 66 309 . Move 558 | 40 316 160 42 Hop . | . . . . Pick Up 16 | 4 11 . 1 Fast Attach 8 | 6 2 . . Attach 1 | . . . 1 Detach . | . . . . Swap 4 | . 2 2 . Drop 4 | . 2 2 . Fire 64 | . 60 4 . Melee . | . . . . Ram . | . . . . Kick . | . . . . Crush . | . . . . Escape Stasis . | . . . . Rewire . | . . . . Trap . | . . . . Miscellaneous . | . . . . Route ------- -11/Scrapyard -10/Materials (discovered 2 exits: *Mat / [*Min]) -10/Mines -9/Materials History --------- Turn | Location | Event 5 | -11/Scrapyard | Discovered new exit (range 15) 73 | -11/Scrapyard | Entered Materials 315 | -10/Materials | Build established: Mutant 461 | -10/Materials | Discovered new exit (range 9) 832 | -10/Materials | Discovered new exit (range 7) 843 | -10/Materials | Entered Mines 858 | -10/Mines | Learned Materials interactive machine intel 868 | -10/Mines | Assembled infested the area 1399 | -10/Mines | Discovered new exit (range 4) 1423 | -10/Mines | Entered Materials 1423 | -9/Materials | Evolved 2 slots: Propulsion x1, Weapon x1 1424 | -9/Materials | Loaded intel: 18 interactive machine locations 1493 | -9/Materials | Self-destructed Last Messages --------------- 01342_ Dropped Sml. Laser. 01383_ System corrupted: Matter fused (-6). 01387_ Acquired 1 matter. 01388_ Acquired 25 matter. 01399_ EXIT=FOUND 01400_ T-07 Excavator is excavating. PARAMETERS=PROPULSION+1,WEAPON+1 LOCATION=UNKNOWN GOAL=ESCAPE Loading Materials interactive machine intel (x18)... 01440_ Acquired Med. Armor Plating. 01453_ Connecting with Terminal... 01453_ Current location identified: Materials 01453_ Connecting with Terminal... >>Schematic(Hcp. Storage Unit) Downloading schematic... Hcp. Storage Unit Rating: 1 Schematic downloaded. Map ----- +----------------------------------------------------+ | ?????????????????????????????????????????????????? | | ?????????????????????????????????????????????????? | | ?????????????????????????????????????????????????? | | ?????????????????????????????????????????????????? | | ?????????????????????????????????????????????????? | | ?????????????????????????????????????????????????? | | ?????????????????????????????????????????????????? | | ?????????????????????????????????????????????????? | | ?????????????????????????????????????????????????? | | ?????????????????????????????????????????????????? | | ?????????????????????????????????????????????????? | | ?????????????????????????????????????????????????? | | ?????????????????????????????????????????????????? | | ??????????????????"T" ??????????????????????????? | | ???????????????? ? ??????????????????????????? | | ?????????????? ??????????????????????????? | | ???????????? ??????????????????T???????? | | ??????????? #?????????????????????????? | | ???????????# #?????????????????????????? | | ????????T??# #??????????""?????????????? | | ???????????# #??????????"""????????????? | | ???????????# ########????S"????????????? | | ???????????# # #??????????????????? | | ???????????# # """ #??????????????????? | | ???????????# # """ #??????????????????? | | ???????????# """ # @""" #??????????????????? | | ???????????# """ # #??????????????????? | | ???????????# """ + #??????????????????? | | ???????????+ #########?????????????????? | | ???????????# ## ??????????????????? | | ???????????# ## """ ?????????????????? | | ???????????# # """"" ?????????????????? | | ????######## # """"" ?????????????????? | | ????# # + """"" ?????????????????? | | ????# " # =[ # """ ?????????????????? | | ????# T + [] # ????????????????? | | ????# " # ########## #??????????????? | | ????# # #????????###########??????????????? | | ????# # #?????????????????????????????????? | | ????############?????????????????????????????????? | | ?????????????????????????????????????????????????? | | ?????????????????????????????????????????????????? | | ?????????????????????????????????????????????????? | | ?????????????????????????????????????????????????? | | | | | | | | | | | | | +----------------------------------------------------+ Best States ------------- Heat Dissipation 38 Energy Generation 10 Energy Capacity 250 Matter Stores 300 Matter Capacity 300 Sight Range 16 Terrain Scan Density 10 Evasion (%) 40 Recoil Reduction 2 Item Schematics ----------------- Huge Storage Unit | -10/Materials | Hacked Hcp. Storage Unit | -9/Materials | Hacked Robot Schematics ------------------ None Fabricated ------------ Nothing Repaired ---------- Nothing Studied --------- None Alien Tech Used ----------------- None Achievements -------------- None Challenges ------------ None Game ------ Seed MultitargetingShiftTearclaws Manual? 0 Play Time 00:07:19 Cumulative 612.6 hours Start 2026.09.13 @ 05:07:58 End 2026.09.13 @ 17:49:42 Sessions 4 Manual Loads 0 Difficulty Rogue Special Mode None Game No. 501 Rogue 501 Adventurer 0 Explorer 0 Win Type - Total 20 Types 12/0/3/1/0/0/0/2/0/2 Lore% 70 Gallery% 72 Achievement% 69 Wizard Run 0 Options --------- Layout 1 ASCII 0 Keyboard 0 Movement Mouse Keybinds 0 Fullscreen 2 Font 24/Cog Map View 25x17 Zoom Use 40% Tactical HUD 1 Map Filters NONE Filters NONE Steam 1 RUN: 966334b5-1551-4fd3-801e-dfaf22978bd9